fUST/lending_fUST_20240407
["ID","MTS","AMOUNT","RATE_DAILY","PERIOD"]
[321717211,1712448640197,-935.33,0.00022485,2]
[321717213,1712448640206,-500.0,0.00022485,2]
[321717216,1712448640216,-500.0,0.00022485,2]
[321717218,1712448640225,-500.0,0.00022485,2]
[321717219,1712448640235,-500.0,0.00022485,2]
[321717222,1712448640245,-500.0,0.00022485,2]
[321717224,1712448640255,-500.0,0.00022485,2]
[321717225,1712448640264,-500.0,0.00022485,2]
[321717227,1712448640273,-500.0,0.00022485,2]
[321717229,1712448640283,-507.04976193,0.00022485,2]
[321717231,1712448640292,-3725.84,0.00022485,2]
[321717233,1712448640301,-500.0,0.00022485,2]
[321717235,1712448640311,-298.535327,0.00022485,2]
[321717237,1712448640320,-500.0,0.00022485,2]
[321717239,1712448640329,-306.15624909,0.00022485,2]
[321717241,1712448640338,-500.0,0.00022485,2]
[321717243,1712448640347,-500.0,0.00022485,2]
[321717245,1712448640356,-500.0,0.00022485,2]
[321717247,1712448640365,-500.0,0.00022485,2]
[321717249,1712448640374,-500.0,0.00022485,2]
[321717251,1712448640383,-500.0,0.00022485,2]
[321717253,1712448640393,-500.0,0.00022485,2]
[321717255,1712448640403,-500.0,0.00022485,2]
[321717258,1712448640413,-500.56366332,0.00022485,2]
[321717259,1712448640424,-500.0,0.00022485,2]
[321717262,1712448640434,-500.0,0.00022485,2]
[321717263,1712448640444,-457.51025467,0.00022485,2]
[321717266,1712448640454,-500.0,0.00022485,2]
[321717268,1712448640464,-500.0,0.00022485,2]
[321717270,1712448640474,-500.0,0.00022485,2]
[321717272,1712448640483,-261.48184347,0.00022485,2]
[321717274,1712448640493,-1166.58642061,0.00022486,2]
[321717275,1712448640503,-500.0,0.00022486,2]
[321717277,1712448640512,-500.0,0.00022486,2]
[321717279,1712448640521,-500.0,0.00022486,2]
[321717281,1712448640531,-271.8991831,0.00022486,2]
[321717283,1712448640541,-500.0,0.00022486,2]
[321717285,1712448640549,-500.0,0.00022486,2]
[321717287,1712448640559,-500.0,0.00022486,2]
[321717289,1712448640568,-151.0,0.00022486,2]
[321717292,1712448640579,-511.75286101,0.00022486,2]
[321717294,1712448640588,-151.0,0.00022486,2]
[321717296,1712448640597,-151.0,0.00022486,2]
[321717298,1712448640607,-7649.1607229,0.00022487,2]
[321717300,1712448640616,-500.0,0.00022487,2]
[321717302,1712448640626,-504.15672575,0.00022487,2]
[321717304,1712448640637,-151.0,0.00022487,2]
[321717306,1712448640646,-151.0,0.00022487,2]
[321717308,1712448640655,-30471.21447654,0.00022488,2]
[321717310,1712448640664,-151.0,0.00022488,2]
[321717312,1712448640674,-151.0,0.00022488,2]
[321717314,1712448640683,-186.31246133,0.00022489,2]
[321717316,1712448640692,-339.05104593,0.00022489,2]
[321717867,1712448646016,-1127.88,0.00022484,2]
[321717869,1712448646026,-347.85282768,0.00022489,2]
[321717871,1712448646035,-187.75664931,0.00022492,2]
[321717874,1712448646045,-367.62487129,0.00022492,2]
[321717876,1712448646054,-249.50360735,0.00022492,2]
[321717878,1712448646063,-255.51805974,0.00022492,2]
[321717879,1712448646072,-161.46929426,0.00022492,2]
[321717882,1712448646082,-207.27250257,0.00022492,2]
[321717884,1712448646091,-179.70602727,0.00022492,2]
[321717886,1712448646101,-620.18723209,0.00022665,2]
[321717888,1712448646110,-164.35,0.00022758,2]
[321717890,1712448646119,-500.0,0.00022758,2]
[321717892,1712448646129,-500.0,0.00022758,2]
[321717894,1712448646137,-500.0,0.00022758,2]
[321717896,1712448646147,-1392.09,0.00022758,2]
[321717898,1712448646156,-500.0,0.00022758,2]
[321717900,1712448646165,-500.0,0.00022758,2]
[321717902,1712448646177,-710.38,0.00022758,2]
[321717904,1712448646186,-5702.85,0.00022758,2]
[321717906,1712448646195,-500.0,0.00022758,2]
[321717908,1712448646204,-1515.86,0.00022758,2]
[321717910,1712448646213,-500.0,0.00022758,2]
[321717912,1712448646223,-889.79,0.00022758,2]
[321717914,1712448646233,-1365.66,0.00022758,2]
[321717916,1712448646242,-1127.88,0.00022758,2]
[321717918,1712448646252,-500.0,0.00022759,2]
[321717920,1712448646262,-267.59399,0.00022759,2]
[321717922,1712448646271,-500.0,0.00022759,2]
[321717924,1712448646280,-500.0,0.00022759,2]
[321717926,1712448646289,-522.9034257,0.00022759,2]
[321717928,1712448646298,-500.0,0.00022759,2]
[321717930,1712448646307,-500.0,0.00022759,2]
[321717932,1712448646316,-296.06947132,0.00022759,2]
[321717934,1712448646326,-500.0,0.00022759,2]
[321717936,1712448646335,-500.0,0.00022759,2]
[321717938,1712448646343,-500.0,0.00022759,2]
[321717940,1712448646352,-500.0,0.00022759,2]
[321717942,1712448646361,-500.0,0.00022759,2]
[321717956,1712448646469,-500.0,0.00022759,2]
[321717958,1712448646483,-558.1,0.00022759,2]
[321717960,1712448646492,-500.0,0.00022759,2]
[321717962,1712448646501,-500.0,0.00022759,2]
[321717964,1712448646510,-151.0,0.00022759,2]
[321717966,1712448646518,-151.0,0.00022759,2]
[321717968,1712448646527,-151.0,0.00022759,2]
[321717970,1712448646536,-605.53,0.00022759,2]
[321717972,1712448646546,-1177.09,0.00022759,2]
[321717974,1712448646555,-500.0,0.00022759,2]
[321717976,1712448646564,-500.0,0.00022759,2]
[321717978,1712448646573,-1541.32,0.00022759,2]
[321717980,1712448646582,-500.0,0.00022759,2]
[321717982,1712448646592,-935.33,0.00022759,2]
[321717984,1712448646601,-500.0,0.00022759,2]
[321717986,1712448646610,-500.0,0.00022759,2]
[321717988,1712448646619,-332.02328386,0.00022759,2]
[321717990,1712448646629,-500.0,0.00022759,2]
[321717992,1712448646638,-500.0,0.00022759,2]
[321717994,1712448646649,-500.0,0.00022759,2]
[321717996,1712448646659,-273.17523279,0.00022759,2]
[321717998,1712448646668,-3725.84,0.00022759,2]
[321718001,1712448646679,-500.0,0.00022759,2]
[321718003,1712448646688,-500.0,0.00022759,2]
[321718004,1712448646696,-500.0,0.00022759,2]
[321718006,1712448646706,-500.0,0.00022759,2]
[321718008,1712448646716,-500.0,0.00022759,2]
[321718010,1712448646726,-500.0,0.00022759,2]
[321718011,1712448646735,-500.0,0.00022759,2]
[321718012,1712448646745,-500.0,0.00022759,2]
[321718013,1712448646754,-555.29837128,0.00022759,2]
[321718014,1712448646763,-509.38747834,0.0002276,2]
[321718015,1712448646772,-580.54763352,0.0002276,2]
[321718016,1712448646781,-500.0,0.0002276,2]
[321718017,1712448646790,-500.0,0.0002276,2]
[321718018,1712448646798,-505.83487078,0.0002276,2]
[321718019,1712448646807,-151.0,0.0002276,2]
[321718020,1712448646816,-500.0,0.00022761,2]
[321718021,1712448646825,-294.9693478,0.00022769,2]
[321718022,1712448646834,-323.12838233,0.00022769,2]
[321718023,1712448646843,-472.03216171,0.0002277,2]
[321718024,1712448646852,-277.18161136,0.00022796,2]
[321718025,1712448646860,-153.0,0.00023,2]
[321718026,1712448646869,-405.1990788,0.00023,2]
[321718028,1712448646878,-205.9910285,0.00023,2]
[321718030,1712448646887,-403.7362491,0.00023,2]
[321718032,1712448646896,-153.0,0.00023,2]
[321718034,1712448646905,-109.79960816,0.00023,2]
[321718036,1712448646917,-295.20409984,0.00023,2]
[321718038,1712448646928,-202.5995394,0.00023,2]
[321718039,1712448646940,-202.5995394,0.00023,2]
[321718042,1712448646949,-202.2087978,0.00023,2]
[321718044,1712448646959,-173.0,0.00023014,2]
[321718046,1712448646968,-500.0,0.00023032,2]
[321718048,1712448646979,-500.0,0.00023032,2]
[321718050,1712448646988,-500.0,0.00023032,2]
[321718051,1712448646997,-1392.09,0.00023032,2]
[321718054,1712448647007,-296.71,0.00023032,2]
[321718056,1712448647019,-500.0,0.00023032,2]
[321718058,1712448647029,-710.38,0.00023032,2]
[321718059,1712448647039,-5702.85,0.00023032,2]
[321718062,1712448647048,-500.0,0.00023032,2]
[321718063,1712448647058,-1515.86,0.00023032,2]
[321718066,1712448647067,-500.0,0.00023032,2]
[321718068,1712448647076,-889.79,0.00023032,2]
[321718069,1712448647085,-667.91402861,0.00023032,2]
[321719213,1712449804787,-174.301356,0.00021421,2]
[321719214,1712449804812,-167.03397288,0.00022,2]
[321719215,1712449804879,-6.96602712,0.00022,2]
[321719250,1712449838098,-300.0,0.00022483,2]
[321719251,1712449838109,-300.0,0.00022483,2]
[321719252,1712449838118,-500.0,0.00022484,2]
[321719253,1712449838127,-211.8955016,0.00022484,2]
[321719254,1712449838207,-157.736296,0.00022484,2]
[321719255,1712449838217,-500.0,0.00022484,2]
[321719256,1712449838227,-500.0,0.00022484,2]
[321719257,1712449838238,-500.0,0.00022484,2]
[321719258,1712449838248,-500.0,0.00022484,2]
[321719259,1712449838258,-620.0093616,0.00022608,2]
[321719260,1712449838477,-368.76932603,0.00022658,2]
[321719261,1712449838488,-155.01240099,0.00022757,2]
[321719262,1712449838497,-500.0,0.00022757,2]
[321719263,1712449838506,-500.0,0.00022757,2]
[321719264,1712449838516,-500.0,0.00022757,2]
[321719265,1712449838525,-505.76974549,0.00022757,2]
[321719266,1712449838534,-500.0,0.00022757,2]
[321719267,1712449838546,-1085.00286989,0.00022757,2]
[321719431,1712449846158,-500.0,0.00022757,2]
[321719432,1712449846167,-500.0,0.00022757,2]
[321719433,1712449846177,-1326.37,0.00022757,2]
[321719434,1712449846186,-500.0,0.00022757,2]
[321719435,1712449846196,-500.0,0.00022757,2]
[321719436,1712449846207,-778.57,0.00022757,2]
[321719437,1712449846216,-1250.61,0.00022757,2]
[321719438,1712449846225,-1033.89,0.00022757,2]
[321719439,1712449846236,-500.0,0.00022757,2]
[321719440,1712449846246,-1260.09,0.00022757,2]
[321719441,1712449846256,-500.0,0.00022757,2]
[321719442,1712449846269,-1079.0,0.00022757,2]
[321719443,1712449846283,-646.35,0.00022757,2]
[321719444,1712449846293,-500.0,0.00022757,2]
[321719445,1712449846304,-1412.88,0.00022757,2]
[321719446,1712449846314,-500.0,0.00022757,2]
[321719447,1712449846323,-500.0,0.00022757,2]
[321719448,1712449846331,-500.0,0.00022757,2]
[321719449,1712449846341,-5027.44,0.00022757,2]
[321719450,1712449846351,-411.96876846,0.00022758,2]
[321719451,1712449846361,-555.07,0.00022758,2]
[321719452,1712449846370,-400.10484627,0.00022758,2]
[321719453,1712449846379,-500.0,0.00022758,2]
[321719454,1712449846388,-500.0,0.00022758,2]
[321719455,1712449846398,-400.0,0.00022758,2]
[321719456,1712449846407,-500.0,0.00022758,2]
[321719457,1712449846416,-500.0,0.00022758,2]
[321719458,1712449846425,-500.0,0.00022758,2]
[321719459,1712449846434,-3415.36,0.00022758,2]
[321719460,1712449846444,-500.0,0.00022758,2]
[321719461,1712449846453,-500.0,0.00022758,2]
[321719462,1712449846462,-174.0,0.00023014,2]
[321719463,1712449846471,-281.89758547,0.00023031,2]
[321719464,1712449846480,-242.37267211,0.00023031,2]
[321719465,1712449846489,-500.0,0.00023031,2]
[321719466,1712449846498,-178.44455304,0.00023031,2]
[321719467,1712449846507,-337.31930415,0.00023031,2]
[321719468,1712449846516,-500.0,0.00023031,2]
[321719469,1712449846526,-649.66,0.00023031,2]
[321719470,1712449846536,-500.0,0.00023031,2]
[321719471,1712449846545,-500.0,0.00023031,2]
[321719472,1712449846557,-500.0,0.00023031,2]
[321719473,1712449846567,-1326.37,0.00023031,2]
[321719474,1712449846577,-500.0,0.00023031,2]
[321719475,1712449846586,-500.0,0.00023031,2]
[321719476,1712449846595,-778.57,0.00023031,2]
[321719477,1712449846605,-1250.61,0.00023031,2]
[321719478,1712449846615,-1033.89,0.00023031,2]
[321719479,1712449846624,-500.0,0.00023031,2]
[321719480,1712449846634,-1260.09,0.00023031,2]
[321719481,1712449846643,-500.0,0.00023031,2]
[321719482,1712449846652,-1079.0,0.00023031,2]
[321719483,1712449846661,-646.35,0.00023031,2]
[321719484,1712449846669,-500.0,0.00023031,2]
[321719485,1712449846678,-1412.88,0.00023031,2]
[321719486,1712449846687,-500.0,0.00023031,2]
[321719487,1712449846697,-500.0,0.00023031,2]
[321719488,1712449846706,-500.0,0.00023031,2]
[321719489,1712449846715,-5027.44,0.00023031,2]
[321719490,1712449846724,-7520.84983497,0.00023032,2]
[321719491,1712449846733,-555.07,0.00023032,2]
[321719492,1712449846742,-500.0,0.00023032,2]
[321719493,1712449846752,-3415.36,0.00023032,2]
[321719494,1712449846762,-500.0,0.00023032,2]
[321719495,1712449846772,-500.0,0.00023032,2]
[321719496,1712449846783,-500.0,0.00023305,2]
[321719497,1712449846793,-318.89,0.00023305,2]
[321719498,1712449846805,-500.0,0.00023305,2]
[321719499,1712449846815,-500.0,0.00023305,2]
[321719500,1712449846824,-1326.37,0.00023305,2]
[321719501,1712449846834,-500.0,0.00023305,2]
[321719502,1712449846843,-500.0,0.00023305,2]
[321719503,1712449846853,-778.57,0.00023305,2]
[321719504,1712449846863,-1250.61,0.00023305,2]
[321719505,1712449846872,-1033.89,0.00023305,2]
[321719506,1712449846882,-500.0,0.00023305,2]
[321719507,1712449846892,-1260.09,0.00023305,2]
[321719508,1712449846902,-387.52,0.00023305,2]
[321719509,1712449846913,-1079.0,0.00023305,2]
[321719510,1712449846923,-646.35,0.00023305,2]
[321719511,1712449846933,-500.0,0.00023305,2]
[321719512,1712449846942,-1412.88,0.00023305,2]
[321719513,1712449846951,-18.53376696,0.00023305,2]
[321719527,1712450037166,300.0,0.000254,12]
[321719537,1712450374069,-783.899256,0.00021977,2]
[321719538,1712450374159,-15.997944,0.00021977,2]
[321719539,1712450406394,150.0,0.0003194,120]
[321719557,1712450887353,-964.92850314,0.0003,30]
[321719558,1712450887420,-175.0,0.0003194,30]
[321719589,1712451038394,-893.2679857,0.00022094,2]
[321719590,1712451038404,-105.7320143,0.00022755,2]
[321719591,1712451038416,-49.2679857,0.00022755,2]
[321719592,1712451038425,-508.81,0.0002303,2]
[321719593,1712451038434,-597.88145157,0.00023031,2]
[321719656,1712451290067,-10846.39221611,0.00021685,2]
[321719657,1712451290310,-221.35494319,0.00021685,2]
[321719659,1712451356571,-192.84221228,0.00021509,2]
[321719660,1712451356597,-195.28341415,0.0002151,2]
[321719661,1712451356682,-7.92093115,0.0002151,2]
[321719662,1712451358870,-321.11447335,0.00022,2]
[321719663,1712451358965,-6.5533566,0.00022,2]
[321719668,1712451602764,1500.0,0.00021,2]
[321719671,1712451662541,1578.0,0.00021,2]
[321719672,1712451677216,-1567.23932557,0.00021894,2]
[321719673,1712451677323,-31.98447603,0.00021894,2]
[321719674,1712451704526,1380.994066,0.000255,4]
[321719675,1712451758578,-205.53253085,0.00022092,2]
[321719676,1712451758602,-1028.20444437,0.00022093,2]
[321719677,1712451758625,-3288.77039732,0.00022094,2]
[321719678,1712451758649,-1259.6237218,0.00022095,2]
[321719679,1712451758669,-192.84221228,0.00022188,2]
[321719680,1712451758690,-250.0,0.00022197,2]
[321719681,1712451758711,-276.80551023,0.00022296,2]
[321719682,1712451758857,-300.0,0.00023028,2]
[321719683,1712451758882,-300.0,0.00023028,2]
[321719684,1712451758902,-3660.56211005,0.00023029,2]
[321719685,1712451758922,-175.33450047,0.00023576,2]
[321719686,1712451758943,-500.0,0.00023577,2]
[321719687,1712451758964,-295.98,0.00023577,2]
[321719688,1712451758984,-500.0,0.00023577,2]
[321719689,1712451759005,-4608.49,0.00023577,2]
[321719690,1712451759026,-1059.85457263,0.00023577,2]
[321719692,1712451785908,357.07515468,0.000255,4]
[321719713,1712451886145,556.735183,0.000254,12]
[321719732,1712452232634,-867.75316092,0.0002235,2]
[321719733,1712452232645,-192.84221228,0.0002235,2]
[321719734,1712452232655,-1086.30756391,0.00022351,2]
[321719735,1712452232664,-180.88142279,0.00022351,2]
[321719736,1712452232674,-2002.24373142,0.00022351,2]
[321719749,1712452238564,-84.68628295,0.00022351,2]
[321719750,1712452238574,-1929.1859808,0.00022352,2]
[321719751,1712452238584,-2577.89649192,0.00022353,2]
[321719752,1712452238593,-1306.43290206,0.00022353,2]
[321719753,1712452238602,-537.45185021,0.00022354,2]
[321719754,1712452238611,-300.0,0.00022355,2]
[321719755,1712452238620,-300.0,0.00022355,2]
[321719756,1712452238630,-616.81451023,0.00022379,2]
[321719757,1712452238639,-174.301356,0.00022383,2]
[321719758,1712452238649,-155.92882395,0.00023578,2]
[321719759,1712452238658,-308.6624644,0.000236,2]
[321719760,1712452238667,-155.0,0.00023848,2]
[321719762,1712452238677,-4416.46,0.00023848,2]
[321719764,1712452238686,-500.0,0.00023848,2]
[321719766,1712452238697,-320.23212869,0.00023848,2]
[321719798,1712452243867,-5.13735343,0.00023848,2]
[321719821,1712452659402,-240.47414134,0.00021747,2]
[321719822,1712452659428,-142.19051717,0.00021748,2]
[321719823,1712452659507,-7.80948283,0.00021748,2]
[321719832,1712452916902,305.91670469,0.0002,10]
[321719833,1712452916926,9728.5560222,0.0002,10]
[321719888,1712453438749,-155.00620025,0.00023642,2]
[321719890,1712453438761,-524.44229482,0.00023642,2]
[321719892,1712453438772,-1320.69367426,0.00023642,2]
[321720033,1712453442862,-766.84188742,0.00023642,2]
[321720034,1712453442873,-1086.30756391,0.00023643,2]
[321720035,1712453442886,-276.80551023,0.00023643,2]
[321720036,1712453442896,-185.41664932,0.00023644,2]
[321720037,1712453442907,-1929.1859808,0.00023644,2]
[321720038,1712453442917,-322.67316032,0.00023645,2]
[321720039,1712453443055,-155.2568515,0.00023688,2]
[321720040,1712453443065,-155.28072123,0.00023688,2]
[321720041,1712453443074,-155.25488401,0.00023689,2]
[321720042,1712453443084,-206.79860721,0.0002369,2]
[321720215,1712453784107,-155.00465014,0.00021543,2]
[321720216,1712453784267,-155.51144266,0.00021544,2]
[321720217,1712453784308,-6.33706312,0.00021544,2]
[321720235,1712454123310,-211.39886368,0.00022006,2]
[321720236,1712454123417,-4.31426252,0.00022006,2]
[321720240,1712454212399,10000.0,0.00026,30]
[321720247,1712454533684,30000.89895017,0.00031943,60]
[321720264,1712454631963,-155.00310006,0.00022245,2]
[321720266,1712454631972,-3663.65357748,0.00022245,2]
[321720268,1712454631981,-188.53515782,0.00022246,2]
[321720270,1712454631990,-1303.81474124,0.00022246,2]
[321720396,1712454637933,-2412.42928179,0.00022246,2]
[321720397,1712454637944,-705.1590582,0.00022247,2]
[321720398,1712454637954,-300.0,0.00022322,2]
[321720399,1712454637965,-323.0943458,0.00022452,2]
[321720400,1712454637975,-300.0,0.00023587,2]
[321720401,1712454637983,-282.33901528,0.00023588,2]
[321720402,1712454637992,-1038.5988472,0.0002368,2]
[321720403,1712454638004,-308.45638369,0.0002368,2]
[321720404,1712454638016,-1014.24773958,0.0002368,2]
[321720408,1712454640119,-3168.34975317,0.0002368,2]
[321720409,1712454640132,-181.61669825,0.00023688,2]
[321720410,1712454640142,-155.830439,0.00023688,2]
[321720411,1712454640153,-265.45456607,0.00023688,2]
[321720412,1712454640162,-517.76305129,0.00023688,2]
[321720413,1712454640172,-561.44048183,0.00023688,2]
[321720414,1712454640182,-221.86952327,0.00023688,2]
[321720491,1712455333657,240.96473131,0.00017765,2]
[321720493,1712455672212,-200.0,0.0003,30]
[321720494,1712455725285,-2135.37394092,0.00021316,2]
[321720495,1712455725528,-43.57906002,0.00021316,2]
[321720496,1712455742126,-3663.65357748,0.00022465,2]
[321720497,1712455742158,-1306.7977765,0.00022466,2]
[321720498,1712455742186,-260.61389618,0.00022466,2]
[321720499,1712455742214,-200.0,0.00022467,2]
[321720500,1712455742240,-188.53515782,0.00022671,2]
[321720501,1712455742268,-3617.08880856,0.00022672,2]
[321720502,1712455742297,-300.0,0.00022672,2]
[321720503,1712455742324,-300.0,0.00022672,2]
[321720504,1712455742350,-240.54498844,0.00022673,2]
[321720505,1712455742377,-895.5883994,0.00022689,2]
[321720506,1712455742403,-284.71790356,0.0002321,2]
[321720507,1712455742431,-237.26233312,0.00023586,2]
[321720508,1712455742458,-237.26233308,0.000236,2]
[321720509,1712455742483,-237.26233308,0.00023615,2]
[321720510,1712455742509,-237.26233308,0.00023629,2]
[321720511,1712455742536,-237.26233308,0.00023643,2]
[321720512,1712455742561,-327.15056696,0.00023683,2]
[321720513,1712455742589,-283.61066914,0.00023684,2]
[321720514,1712455742617,-155.53671704,0.00023684,2]
[321720515,1712455742645,-216.82316428,0.00023684,2]
[321720516,1712455742673,-156.24695089,0.00023684,2]
[321720517,1712455742700,-157.99983263,0.00023684,2]
[321720518,1712455742727,-2711.57286819,0.00023686,2]
[321720519,1712455742755,-409.47800086,0.00023686,2]
[321720520,1712455742782,-19978.99138596,0.00023686,2]
[321720521,1712455742810,-155.80124552,0.00023686,2]
[321720522,1712455742838,-523.95794291,0.00023686,2]
[321720523,1712455742866,-572.697744,0.00023686,2]
[321720524,1712455742893,-212.83070858,0.00023687,2]
[321720525,1712455742919,-512.33360507,0.00023687,2]
[321720526,1712455742946,-501.62527762,0.00023687,2]
[321720527,1712455742972,-508.70347489,0.00023687,2]
[321720528,1712455743004,-500.0,0.00023687,2]
[321720529,1712455743036,-520.13908105,0.00023687,2]
[321720530,1712455743068,-608.27352479,0.00023687,2]
[321720531,1712455743099,-500.0,0.00023687,2]
[321720532,1712455743128,-1003.18595518,0.00023687,2]
[321720533,1712455743164,-507.13713005,0.00023687,2]
[321720534,1712455743197,-516.80539865,0.00023687,2]
[321720535,1712455743229,-509.91216116,0.00023687,2]
[321720536,1712455743258,-169.20744396,0.00023687,2]
[321720537,1712455743289,-524.68463871,0.00023687,2]
[321720538,1712455743321,-513.80844587,0.00023687,2]
[321720539,1712455743349,-504.04424843,0.00023687,2]
[321720540,1712455743377,-1000.9,0.00023687,2]
[321720541,1712455743403,-502.89940858,0.00023687,2]
[321720542,1712455743430,-1170.39,0.00023687,2]
[321720543,1712455743457,-511.94737524,0.00023687,2]
[321720544,1712455743483,-503.68467475,0.00023687,2]
[321720545,1712455743509,-500.0,0.00023687,2]
[321720546,1712455743534,-500.0,0.00023687,2]
[321720547,1712455743561,-229.10380308,0.00023687,2]
[321720548,1712455748846,-2178.95300094,0.00023686,2]
[321720549,1712455748880,-270.89619692,0.00023687,2]
[321720550,1712455748917,-500.0,0.00023687,2]
[321720551,1712455748946,-500.0,0.00023687,2]
[321720552,1712455748973,-507.44490237,0.00023687,2]
[321720553,1712455749005,-1352.47,0.00023687,2]
[321720554,1712455749035,-500.0,0.00023687,2]
[321720555,1712455749069,-517.47898042,0.00023687,2]
[321720556,1712455749109,-503.19739755,0.00023687,2]
[321720557,1712455749141,-500.0,0.00023687,2]
[321720558,1712455749174,-511.05531813,0.00023687,2]
[321720559,1712455749206,-538.9577176,0.00023687,2]
[321720560,1712455749238,-500.0,0.00023687,2]
[321720561,1712455749269,-879.62,0.00023687,2]
[321720562,1712455749300,-151.0,0.00023687,2]
[321720563,1712455749338,-151.0,0.00023687,2]
[321720564,1712455749367,-151.0,0.00023687,2]
[321720565,1712455749395,-151.0,0.00023687,2]
[321720566,1712455749423,-505.34435534,0.00023687,2]
[321720567,1712455749452,-151.0,0.00023687,2]
[321720568,1712455749480,-500.0,0.00023687,2]
[321720569,1712455749508,-151.0,0.00023687,2]
[321720570,1712455749535,-151.0,0.00023687,2]
[321720571,1712455749563,-151.0,0.00023687,2]
[321720572,1712455749594,-151.0,0.00023687,2]
[321720573,1712455749620,-151.0,0.00023687,2]
[321720574,1712455749648,-151.0,0.00023687,2]
[321720575,1712455749675,-151.0,0.00023687,2]
[321720576,1712455749701,-151.0,0.00023687,2]
[321720577,1712455749728,-155.382915,0.00023687,2]
[321720578,1712455749754,-502.18354057,0.00023687,2]
[321720579,1712455749781,-518.53716215,0.00023687,2]
[321720580,1712455749808,-500.0,0.00023687,2]
[321720581,1712455749836,-506.82422977,0.00023687,2]
[321720582,1712455749863,-321.60501408,0.00023687,2]
[321720583,1712455749889,-500.0,0.00023687,2]
[321720584,1712455749916,-4559.95,0.00023687,2]
[321720585,1712455749942,-500.0,0.00023687,2]
[321720586,1712455749968,-328.39067474,0.00023687,2]
[321720587,1712455749995,-540.94906563,0.00023687,2]
[321720588,1712455750023,-502.13810528,0.00023687,2]
[321720589,1712455750052,-282.71961155,0.00023687,2]
[321720590,1712455750088,-1169.8,0.00023687,2]
[321720591,1712455750120,-502.50154048,0.00023687,2]
[321720592,1712455750155,-505.57285653,0.00023687,2]
[321720593,1712455750190,-500.0,0.00023687,2]
[321720594,1712455750225,-505.46856628,0.00023687,2]
[321720595,1712455750259,-500.0,0.00023687,2]
[321720596,1712455750291,-500.0,0.00023687,2]
[321720597,1712455750328,-511.98373735,0.00023687,2]
[321720598,1712455750364,-500.0,0.00023687,2]
[321720599,1712455750398,-502.47709434,0.00023687,2]
[321720600,1712455750432,-177.1685465,0.00023687,2]
[321720601,1712455750461,-738.64,0.00023687,2]
[321720602,1712455750495,-500.0,0.00023687,2]
[321720603,1712455750531,-1180.68,0.00023687,2]
[321720604,1712455750562,-500.0,0.00023687,2]
[321720605,1712455750598,-3386.56,0.00023687,2]
[321720606,1712455750631,-633.30662877,0.00023687,2]
[321720607,1712455750664,-542.64051065,0.00023687,2]
[321720608,1712455750699,-955.26,0.00023687,2]
[321720609,1712455750733,-1121.62,0.00023687,2]
[321720610,1712455750763,-506.0698036,0.00023687,2]
[321720611,1712455750793,-509.78283572,0.00023688,2]
[321720612,1712455750826,-510.20644543,0.00023688,2]
[321720613,1712455750860,-514.78972319,0.00023688,2]
[321720614,1712455750892,-505.04688117,0.00023688,2]
[321720615,1712455750922,-509.04132904,0.00023688,2]
[321720616,1712455750951,-500.0,0.00023688,2]
[321720617,1712455750981,-506.06746417,0.00023688,2]
[321720618,1712455751013,-500.0,0.00023688,2]
[321720619,1712455751045,-214.799875,0.00023688,2]
[321720620,1712455751080,-508.97524226,0.00023688,2]
[321720621,1712455751113,-501.29020982,0.00023688,2]
[321720622,1712455751143,-506.348543,0.00023688,2]
[321720623,1712455751172,-549.84334532,0.00023688,2]